Cogmind - Beta 13 *** ADVENTURER MODE // 2024.05.26 @ 18:04:15 Player: IlyaSM Result: Destroyed by A8-RLI(z) with Makeshift Axe Performance ------------- Evolutions (3) 1500 Regions Visited (10) 2000 Robots Destroyed (35) 175 Value Destroyed (975) 975 Prototype IDs (29) 580 Alien Tech Used (0) 0 Bonus (450) 450 TOTAL SCORE: 5680 Bonus ------- Follower Combat Kills 30 Aligned with FarCom 300 Met Imprinter 300 Friendly Fire -180 Cogmind --------- Core Integrity 0/700 Matter 18/350 Energy 300/300 System Corruption 5% Temperature Cool (0) Movement Walking (270) Ox2 Location -7/Zion Parts ------- > --- POWER (2) -------- Angular Momentum Engine > --- PROPULSION (3) --- VSS Leg (fused) VSS Leg > --- UTILITY (5) ------ Advanced Cryofiber Web High-capacity Storage Unit Small Matter Pod Makeshift ECM Suite > --- WEAPON (3) ------- (None) > --- INVENTORY (20) --- Transmission Jammer Hardlight Generator Improved Shield Generator Field Recycling Unit (0) Heavy Assault Rifle RU-N14's Throwing Claymores (4) RU-N14's Throwing Claymores (4) Self-destruct Interrupter (50) Peak State ------------ > --- POWER ------------ Improved Deuterium Engine Improved Deuterium Engine > --- PROPULSION ------- Carbon-fiber Leg Potential Leg Potential Leg > --- UTILITY ---------- Machine Analyzer Visual Processing Unit Seismic Detector Shield Generator Hacking Suite > --- WEAPON ----------- Cooled Particle Cannon Cooled Particle Cannon Cooled Particle Cannon > --- INVENTORY -------- Carbon-fiber Leg Small Matter Pod Field Recycling Unit Cooled Particle Cannon EMP Blaster [Rating: 58] Favorites ----------- Power Light Nuclear Core Engine Improved Deuterium Engine Power Core Light Nuclear Core Propulsion VSS Leg Treads Light Treads Leg VSS Leg Hover Unit Improved Hover Unit Utility Shield Generator Device Shield Generator Storage Small Matter Pod Processor Advanced Terrain Scan Processor Hackware Hacking Suite Protection Power Shielding Weapon Assault Rifle Energy Gun Medium Laser Energy Cannon Improved EM Pulse Cannon Ballistic Gun Assault Rifle Ballistic Cannon Advanced Assault Cannon Launcher Grenade Launcher Special Weapon RU-N14's Throwing Claymores Piercing Weapon Kinetic Spear Build | -11 -10 -10 -10 -9 -8 -7 -7 -7 -7 -7 ------- Run | Yrd Mat Min Exi Min Mat Fac Was Fac Low Zio Slots Evolved 6 | . . . . . 4 2 . . . . Power 1 | . . . . . 1 . . . . . Propulsion 1 | . . . . . 1 . . . . . Utility 3 | . . . . . 1 2 . . . . Weapon 1 | . . . . . 1 . . . . . Parts Attached 82 | 5 12 2 6 5 20 6 5 13 . 8 Power 12 | 1 2 . . . 3 1 . 4 . 1 Engine 10 | 1 1 . . . 3 1 . 3 . 1 Core 2 | . 1 . . . . . . 1 . . Reactor . | . . . . . . . . . . . Propulsion 13 | 2 2 . 2 . 1 . 1 4 . 1 Treads 2 | . 2 . . . . . . . . . Leg 10 | 2 . . 2 . 1 . 1 3 . 1 Wheel . | . . . . . . . . . . . Hover 1 | . . . . . . . . 1 . . Flight . | . . . . . . . . . . . Utility 27 | . 5 . 3 2 10 2 1 2 . 2 Device 20 | . 4 . 3 2 7 2 1 . . 1 Storage 2 | . . . . . . . . 1 . 1 Processor 3 | . . . . . 2 . . 1 . . Hackware 1 | . . . . . 1 . . . . . Protection 1 | . 1 . . . . . . . . . Artifact . | . . . . . . . . . . . Weapon 30 | 2 3 2 1 3 6 3 3 3 . 4 Energy Gun 4 | . 2 . . . 2 . . . . . Energy Cannon 8 | . . . . . 1 3 2 1 . 1 Ballistic Gun 5 | 2 . 1 . 2 . . . . . . Ballistic Cannon 3 | . 1 . . . . . . 2 . . Launcher 4 | . . 1 1 . 2 . . . . . Special Weapon 5 | . . . . 1 1 . . . . 3 Impact Weapon . | . . . . . . . . . . . Slashing Weapon . | . . . . . . . . . . . Piercing Weapon 1 | . . . . . . . 1 . . . Special Melee Weapon . | . . . . . . . . . . . Unidentified Prototypes 7 | . . . 3 . 1 1 1 . . 1 Parts Lost 23 | . . . . 5 1 . 7 6 . 4 Power 5 | . . . . 1 . . 1 3 . . Propulsion 5 | . . . . . . . 2 1 . 2 Utility 4 | . . . . 2 . . 1 . . 1 Weapon 9 | . . . . 2 1 . 3 2 . 1 Highest Loss Streak 7 | . . . . 4 1 . 7 3 . 2 To Critical Strikes . | . . . . . . . . . . . Average Slot Usage (%) 84 | . 98 100 100 83 86 99 62 24 46 73 Engine 3 | . 1 . . . 13 15 7 1 . . Core 5 | . 12 14 14 2 . . . . . . Treads 7 | . 22 28 13 . . . . . . . Leg 16 | . 5 . 14 28 22 23 13 4 23 22 Device 16 | . 16 28 28 26 8 15 10 7 7 10 Storage 2 | . . . . . . . . 2 7 10 Processor 5 | . . . . . 17 15 10 . 7 6 Protection 1 | . 10 . . . . . . . . . Energy Gun 4 | . 11 14 . . 9 . . . . . Energy Cannon 3 | . . . . . 2 21 14 2 . 6 Ballistic Gun 6 | . 15 11 14 12 5 . . . . . Launcher 3 | . . 2 14 2 5 . . . . . Special Weapon 4 | . . . . 8 1 . . . . 13 Naked Turns 45 | . . . . . . . 45 . . . Heaviest Build 79 | 7 12 13 16 14 36 44 44 16 2 79 Greatest Support 75 | 20 40 40 60 60 75 75 75 36 3 41 Greatest Overweight (x) 21 | . . . . . . . 3 5 . 21 Average Overweight (x) . | . . . . . . . . 1 . 3 Largest Inventory Capacity 20 | 5 5 5 5 5 5 5 5 5 5 20 Average Capacity 6 | 5 5 5 5 5 5 5 5 5 5 11 Most Carried 8 | 2 5 5 5 5 5 5 5 5 3 8 Average Carried 4 | . 4 4 4 3 4 4 4 2 3 5 Final Capacity 20 | 5 5 5 5 5 5 5 5 5 5 20 Final Carried 8 | 1 5 5 5 4 5 5 2 3 3 8 Class Distribution -------------------- 55% | Mutant 22% | Gunner 14% | Skirmisher 7% | Hacker-Skirmisher Dominant Class ---------------- Mutant | -10/Materials Mutant | -10/Mines Mutant | -10/Exiles Mutant | -9/Mines Skirmisher | -8/Materials Hacker-Skirmisher | -7/Factory Hacker-Skirmisher | -7/Waste Mutant | -7/Factory Mutant | -7/Lower Caves Gunner | -7/Zion Resources | -11 -10 -10 -10 -9 -8 -7 -7 -7 -7 -7 ----------- Run | Yrd Mat Min Exi Min Mat Fac Was Fac Low Zio Matter Collected 1149 | 198 133 192 . 120 412 . . 7 3 84 Remotely . | . . . . . . . . . . . Salvage Created 1062 | 38 184 204 . 140 348 . . 21 . 127 Parts 70 | 4 20 10 . 2 23 . . 4 . 7 Haulers Intercepted . | . . . . . . . . . . . Recyclers Shooed . | . . . . . . . . . . . Parts Field Recycled 15 | . . . . . 15 . . . . . Retrieved Matter 92 | . . . . . 92 . . . . . Parts Self-Destructed 3 | . . . . . . . . . 2 1 Prevented . | . . . . . . . . . . . Kills | -11 -10 -10 -10 -9 -8 -7 -7 -7 -7 -7 ------- Run | Yrd Mat Min Exi Min Mat Fac Was Fac Low Zio Combat Hostiles Destroyed 36 | 1 5 7 . 12 5 . . 2 . 4 Guns 20 | 1 5 6 . 6 2 . . . . . Cannons 5 | . . . . . 1 . . 2 . 2 AOE 11 | . . 1 . 6 2 . . . . 2 Classes Destroyed 15 | 1 3 . . 4 4 . . . . 3 Worker 2 | . 1 . . . 1 . . . . . Builder 1 | . . . . . 1 . . . . . Tunneler 1 | . . . . 1 . . . . . . Recycler 1 | . . . . 1 . . . . . . Operator 1 | . . . . . 1 . . . . . Drone 1 | . . . . 1 . . . . . . Watcher 3 | . 2 . . . 1 . . . . . Swarmer 8 | . 3 3 . . . . . 2 . . Grunt 9 | 1 2 4 . . 2 . . . . . Duelist 1 | . . . . . 1 . . . . . Sentry 2 | . . . . . 2 . . . . . Zionite 2 | . . . . . . . . . . 2 Tinkerer 1 | . . . . . . . . . . 1 Assembled 12 | . . . . 12 . . . . . . Mutant 4 | . . . . . . . . . . 4 Best Kill Streak 12 | 1 6 3 . 12 4 . . 1 . 5 Combat Bots Only 12 | 1 5 3 . 12 3 . . 1 . 3 Max Kills in Single Turn 2 | 1 1 2 . 1 2 . . 1 . 2 Gunslinging 1 | . . 1 . . . . . . . . Exploded 1 | . . 1 . 1 1 . . . . 1 Melee . | . . . . . . . . . . . Uniques/NPCs Destroyed . | . . . . . . . . . . . Combat | -11 -10 -10 -10 -9 -8 -7 -7 -7 -7 -7 -------- Run | Yrd Mat Min Exi Min Mat Fac Was Fac Low Zio Hostile Shots Fired 388 | 8 40 29 . 39 14 . 9 134 4 111 Missed 122 | 1 12 4 . 9 3 . 2 51 1 39 Damage Taken 3293 | 58 204 147 . 599 226 . 229 1090 34 706 Core 981 | 16 34 20 . 171 27 . 109 458 9 137 Absorbed by Shields 181 | . . 60 . 102 3 . 16 . . . Redirected to Shielding 3 | . 3 . . . . . . . . . Ignored by Resistances 1009 | 17 65 62 . 197 64 . 65 315 10 214 Regen/Repaired (Parts) 45 | . . . . . 45 . . . . . Core Remaining (%) 63 | 93 . . . 3 95 . . . . . Volleys Fired 159 | 5 19 17 . 62 17 . 8 24 . 7 Largest 3 | 2 2 2 . 2 3 . 3 1 . 1 Hottest 159 | 40 70 80 . 100 159 . 90 65 . 69 Shots Fired 238 | 10 37 34 . 65 37 . 23 25 . 7 Gun 135 | 10 37 32 . 29 27 . . . . . Cannon 52 | . . . . . 2 . 23 25 . 2 Launcher 21 | . . 2 . 11 8 . . . . . Special 30 | . . . . 25 . . . . . 5 Kinetic 103 | 10 31 15 . 29 5 . . 13 . . Thermal 94 | . 6 17 . 25 11 . 23 12 . . Explosive 18 | . . 2 . 11 . . . . . 5 Electromagnetic 23 | . . . . . 21 . . . . 2 Robot Hit Streak 14 | 6 9 14 . 7 5 . 8 5 . 6 Robot Miss Streak 5 | 2 2 1 . 3 5 . 3 2 . . Penetration Max . | . . . . . . . . . . . Secondary Targets 1 | . . 1 . . . . . . . . Max Gunslinging Chain 1 | . . 1 . . . . . . . . Shots Hit Robots 118 | 7 17 25 . 21 21 . 13 12 . 2 Core Hits 86 | 2 12 12 . 29 13 . 2 2 . 14 Critical Kills . | . . . . . . . . . . . Critical Parts Destroyed . | . . . . . . . . . . . Critical Strikes 4 | . . 1 . . 1 . . 2 . . Burn 2 | . . 1 . . 1 . . . . . Blast 2 | . . . . . . . . 2 . . Melee Attacks . | . . . . . . . . . . . Impact . | . . . . . . . . . . . Slashing . | . . . . . . . . . . . Piercing . | . . . . . . . . . . . Sneak Attacks . | . . . . . . . . . . . Combat Hostiles . | . . . . . . . . . . . Follow-up Attacks . | . . . . . . . . . . . Damage Inflicted 3975 | 93 259 371 . 789 605 . 491 333 . 1034 Guns 1196 | 93 249 301 . 288 265 . . . . . Cannons 879 | . . . . . 55 . 491 333 . . Explosions 1674 | . . 70 . 477 285 . . . . 842 Melee . | . . . . . . . . . . . Ramming 15 | . 10 . . . . . . . . 5 Kinetic 968 | 93 212 151 . 288 27 . . 197 . . Thermal 1075 | . 37 150 . 24 237 . 491 136 . . Explosive 1389 | . . 70 . 477 . . . . . 842 Electromagnetic 341 | . . . . . 341 . . . . . Impact . | . . . . . . . . . . . Slashing 187 | . . . . . . . . . . 187 Piercing . | . . . . . . . . . . . Highest Corruption 11 | . . . . . . . 11 11 11 11 Average Corruption 9 | . . . . . . . 8 11 11 7 Corruption Purged . | . . . . . . . . . . . Corruption Blocked . | . . . . . . . . . . . Effects 46 | . . . . . . . 6 18 6 16 Message Errors 13 | . . . . . . . 3 3 1 6 Matter Fused 8 | . . . . . . . . 4 2 2 Heat Flow Errors 1 | . . . . . . . . . . 1 Energy Discharges 8 | . . . . . . . 1 2 2 3 Parts Fused 2 | . . . . . . . . 1 . 1 Data Loss (minor) 6 | . . . . . . . 1 3 . 2 Data Loss (major) 2 | . . . . . . . . 1 . 1 Misfires 2 | . . . . . . . . 2 . . Misdirections 2 | . . . . . . . . 1 1 . Weapon Failures 2 | . . . . . . . 1 1 . . Overload Shots . | . . . . . . . . . . . Overflow Damage 91 | . . . . 32 . . . 17 . 42 Projectiles 32 | . . . . . . . . 17 . 15 Explosions 59 | . . . . 32 . . . . . 27 Melee . | . . . . . . . . . . . Knockbacks 3 | . . . . . . . . 3 . . Impact . | . . . . . . . . . . . Kinetic 3 | . . . . . . . . 3 . . Secondary . | . . . . . . . . . . . Self-Inflicted Damage 69 | . . . . 59 10 . . . . . Shots 7 | . . . . 5 2 . . . . . Rammed 1 | . 1 . . . . . . . . . Targets Rammed 3 | . 2 . . . . . . . . 1 Kicked 2 | . 1 . . . . . . . . 1 Crushed . | . . . . . . . . . . . Highest Temperature 427 | . 30 158 . 26 427 . 70 93 . 75 Average Temperature 66 | . 12 58 . 8 148 . 33 38 . 41 Received Heat Transfer 969 | 42 135 66 . 97 27 . . 522 . 80 Effects 5 | . . . . . 5 . . . . . Shutdowns 2 | . . . . . 2 . . . . . Energy Bleed 1 | . . . . . 1 . . . . . Interference 2 | . . . . . 2 . . . . . Siege Activations . | . . . . . . . . . . . Robots Corrupted . | . . . . . . . . . . . Combat Hostiles . | . . . . . . . . . . . Parts Fried 1 | . . . . . 1 . . . . . Impact Corruptions . | . . . . . . . . . . . Robots Melted . | . . . . . . . . . . . Combat Hostiles . | . . . . . . . . . . . Parts Melted 1 | . . . . . 1 . . . . . Heat Transferred 2000 | . 111 518 . 50 470 . 666 185 . . Parts Sabotaged . | . . . . . . . . . . . Parts Stolen . | . . . . . . . . . . . Parts Stripped . | . . . . . . . . . . . Power Chain Reactions 2 | . . . . . 2 . . . . . Alert | -11 -10 -10 -10 -9 -8 -7 -7 -7 -7 -7 ------- Run | Yrd Mat Min Exi Min Mat Fac Was Fac Low Zio Peak Influence 153 | 20 153 120 . 70 113 8 15 111 . . Initial 11 | . 11 . . . 1 8 2 . . . Average 29 | 1 54 41 . 25 18 8 1 19 . . Maximum Alert Level . | . . . . . . . . . . . Low Security (%) 100 | 100 100 100 . 100 100 100 100 100 . . Level 1 . | . . . . . . . . . . . Level 2 . | . . . . . . . . . . . Level 3 . | . . . . . . . . . . . Level 4 . | . . . . . . . . . . . Level 5 . | . . . . . . . . . . . High Security . | . . . . . . . . . . . Max Security . | . . . . . . . . . . . Squads Dispatched 5 | . . . . 1 1 . . 3 . . Investigation . | . . . . . . . . . . . Extermination . | . . . . . . . . . . . Reinforcement 2 | . . . . 1 1 . . . . . Assault . | . . . . . . . . . . . Garrison 3 | . . . . . . . . 3 . . Intercept . | . . . . . . . . . . . Searches Triggered . | . . . . . . . . . . . Construction Impeded 2 | . . . . 1 1 . . . . . Haulers Reinforced . | . . . . . . . . . . . Active Scanning Responses . | . . . . . . . . . . . Cargo Convoy Interrupts . | . . . . . . . . . . . Stealth | -11 -10 -10 -10 -9 -8 -7 -7 -7 -7 -7 --------- Run | Yrd Mat Min Exi Min Mat Fac Was Fac Low Zio Distress Signals 1 | . 1 . . . . . . . . . Communications Jammed . | . . . . . . . . . . . Distress Signals . | . . . . . . . . . . . Times Spotted 71 | 1 10 7 . 16 8 . 6 11 2 10 Peak Tracking Total 9 | 1 6 3 . 4 3 . 5 6 3 9 Tactical Retreats 11 | . . . . 3 . . 1 5 1 1 Traps | -11 -10 -10 -10 -9 -8 -7 -7 -7 -7 -7 ------- Run | Yrd Mat Min Exi Min Mat Fac Was Fac Low Zio Traps Triggered 7 | . 3 . . . 1 1 . 2 . . Indirectly . | . . . . . . . . . . . Trap Hack Attempts . | . . . . . . . . . . . Triggered . | . . . . . . . . . . . Disarmed . | . . . . . . . . . . . Reprogrammed . | . . . . . . . . . . . Reused . | . . . . . . . . . . . Traps Extracted . | . . . . . . . . . . . Installed . | . . . . . . . . . . . Triggered . | . . . . . . . . . . . Machines | -11 -10 -10 -10 -9 -8 -7 -7 -7 -7 -7 ---------- Run | Yrd Mat Min Exi Min Mat Fac Was Fac Low Zio Machines Disabled 3 | . . . . . . . . . . 3 Max in Single Turn 1 | . . . . . . . . . . 1 Machines Repaired . | . . . . . . . . . . . Machines Dismantled . | . . . . . . . . . . . Machines Sabotaged . | . . . . . . . . . . . Overloaded Fab Kills . | . . . . . . . . . . . Hacking | -11 -10 -10 -10 -9 -8 -7 -7 -7 -7 -7 --------- Run | Yrd Mat Min Exi Min Mat Fac Was Fac Low Zio Machines Accessed 26 | . 8 1 5 . 7 4 . 1 . . Terminals 11 | . 5 . . . 5 . . 1 . . Fabricators 3 | . . . . . . 3 . . . . Repair Stations 2 | . 1 . . . 1 . . . . . Recycling Units 3 | . 2 . . . 1 . . . . . Scanalyzers 1 | . . . . . . 1 . . . . Garrison Access . | . . . . . . . . . . . Total Hacks 102 | . 17 1 50 . 22 10 . 2 . . Successful 96 | . 17 1 50 . 17 10 . 1 . . Failed 6 | . . . . . 5 . . 1 . . Catastrophic . | . . . . . . . . . . . Database Lockouts . | . . . . . . . . . . . Manual 4 | . . . 4 . . . . . . . Terminals 29 | . 13 . . . 14 . . 2 . . Fabricators 5 | . . . . . . 5 . . . . Repair Stations 4 | . 1 . . . 3 . . . . . Recycling Units 8 | . 3 . . . 5 . . . . . Scanalyzers 5 | . . . . . . 5 . . . . Garrison Access . | . . . . . . . . . . . Terminal Hacks 76 | . 13 1 50 . 11 . . 1 . . Record 61 | . 8 . 49 . 4 . . . . . Open Door 1 | . . 1 . . . . . . . . Open DSF 1 | . . . . . . . . 1 . . Alert Level 3 | . 1 . . . 2 . . . . . Unreport Threat 2 | . . . . . 2 . . . . . Maintenance Status 1 | . 1 . . . . . . . . . Security Status 1 | . . . . . 1 . . . . . Transport Status 2 | . 1 . . . 1 . . . . . Reinforcement Status 1 | . . . . . 1 . . . . . Hauler Manifests 1 | . 1 . . . . . . . . . Zone Layout 1 | . 1 . . . . . . . . . Derelict Proto ID Bank 1 | . . . 1 . . . . . . . Fabricator Hacks 5 | . . . . . . 5 . . . . Network Status 3 | . . . . . . 3 . . . . Build 2 | . . . . . . 2 . . . . Repair Station Hacks 3 | . 1 . . . 2 . . . . . Scan Component 2 | . 1 . . . 1 . . . . . Repair 1 | . . . . . 1 . . . . . Recycling Unit Hacks 7 | . 3 . . . 4 . . . . . Process 1 | . . . . . 1 . . . . . Report Inventory 4 | . 2 . . . 2 . . . . . Retrieve Matter 1 | . . . . . 1 . . . . . Retrieve Components 1 | . 1 . . . . . . . . . Scanalyzer 5 | . . . . . . 5 . . . . Insert Component 2 | . . . . . . 2 . . . . Analyze 3 | . . . . . . 3 . . . . Garrison Access Hacks . | . . . . . . . . . . . Unauthorized Hacks . | . . . . . . . . . . . Terminals . | . . . . . . . . . . . Fabricators . | . . . . . . . . . . . Repair Stations . | . . . . . . . . . . . Recycling Units . | . . . . . . . . . . . Scanalyzers . | . . . . . . . . . . . Garrison Access . | . . . . . . . . . . . Data Cores Recovered 1 | . . . . . 1 . . . . . Used . | . . . . . . . . . . . Hacking Detections 13 | . 6 . . . 3 3 . 1 . . Full Trace Events . | . . . . . . . . . . . Feedback Events . | . . . . . . . . . . . Feedback Blocked . | . . . . . . . . . . . Robot Schematics Acquired 3 | . . . . . . . . . . 3 Robots Built 3 | . . . . . . 3 . . . . Authchips . | . . . . . . . . . . . Time 99 | . . . . . . 99 . . . . Total Robot Build Rating 6 | . . . . . . 6 . . . . Part Schematics Acquired 17 | . . . . . . 2 . . . 15 Parts Built 1 | . . . . . . 1 . . . . Authchips . | . . . . . . . . . . . Time 117 | . . . . . . 117 . . . . Total Part Build Rating 7 | . . . . . . 7 . . . . Parts Repaired 1 | . . . . . 1 . . . . . Time 32 | . . . . . 32 . . . . . Parts Recycled . | . . . . . . . . . . . Recycled Matter 5 | . . . . . 5 . . . . . Retrieved Matter . | . . . . . . . . . . . Retrieved Components 3 | . 3 . . . . . . . . . Parts Scanalyzed 2 | . . . . . . 2 . . . . Part Schematics Acquired 2 | . . . . . . 2 . . . . Parts Damaged . | . . . . . . . . . . . Bothacking | -11 -10 -10 -10 -9 -8 -7 -7 -7 -7 -7 ------------ Run | Yrd Mat Min Exi Min Mat Fac Was Fac Low Zio Used RIF Installer . | . . . . . . . . . . . Robots Hacked . | . . . . . . . . . . . Non-combat . | . . . . . . . . . . . Combat . | . . . . . . . . . . . Robot Hacks Applied . | . . . . . . . . . . . Relay Couplers Released . | . . . . . . . . . . . Fabnet Peak Effective % . | . . . . . . . . . . . Robots Rewired . | . . . . . . . . . . . Allies Hacked . | . . . . . . . . . . . Hacks Repelled . | . . . . . . . . . . . Allies | -11 -10 -10 -10 -9 -8 -7 -7 -7 -7 -7 -------- Run | Yrd Mat Min Exi Min Mat Fac Was Fac Low Zio Total Allies 4 | . . . . . . 3 1 . . . Largest Group 3 | . . . . . . 3 3 . . . Highest-Rated Group 31 | . . . . . . 30 31 . . . Highest-Rated Ally 31 | . . . . . . 10 31 . . . Total Orders . | . . . . . . . . . . . Ally Attacks 18 | . . . . 5 . . 13 . . . Total Damage 315 | . . . . 45 . . 270 . . . Kills 1 | . . . . . . . 1 . . . Allies Corrupted . | . . . . . . . . . . . Allies Melted . | . . . . . . . . . . . Intel | -11 -10 -10 -10 -9 -8 -7 -7 -7 -7 -7 ------- Run | Yrd Mat Min Exi Min Mat Fac Was Fac Low Zio Robot Analysis Total . | . . . . . . . . . . . Derelict Logs Recovered 5 | . . 1 . 1 . . . . 1 2 Drone Launches 3 | . . . . 3 . . . . . . Drone Recoveries . | . . . . . . . . . . . Exploration | -11 -10 -10 -10 -9 -8 -7 -7 -7 -7 -7 ------------- Run | Yrd Mat Min Exi Min Mat Fac Was Fac Low Zio Turns Passed 8049 | 92 993 939 1008 607 1295 357 192 424 92 2050 Spaces Moved 5132 | 74 573 545 873 318 1030 315 205 335 184 680 Core 971 | 31 . . . . . . 108 308 184 340 Treads 1301 | . 464 545 292 . . . . . . . Legs 2843 | 43 109 . 581 318 1030 315 97 10 . 340 Wheels . | . . . . . . . . . . . Hover 17 | . . . . . . . . 17 . . Flight . | . . . . . . . . . . . Fastest Speed 50 | 50 120 160 90 90 90 100 50 50 50 50 Average Speed 135 | 90 152 160 113 90 94 100 78 103 50 293 Slowest Speed 1100 | 120 160 160 160 90 100 100 200 300 50 1100 Overloaded Moves . | . . . . . . . . . . . Propulsion Burnouts . | . . . . . . . . . . . Robots Hopped 1 | . . . . . . . . . . 1 Cave-ins Triggered . | . . . . . . . . . . . Exploration Rate (%) 47 | 7 81 65 93 40 42 6 97 12 27 55 Regions Visited 10 Branch Regions 5 Pre-discovered Areas 6 | . . . 1 1 . . . . . 4 Known Exits Taken . | . . . . . . . . . . . Unknown Exits Taken 8 | 1 1 1 1 1 1 . . 1 1 . Scrap Searched 5 | . . . . 2 . . . . . 3 Spaces Dug 24 | . . . . 23 . . . 1 . . Terrain Destroyed 157 | . . 9 . 131 8 . 2 7 . . Melee . | . . . . . . . . . . . Projectile 33 | . . . . 24 . . 2 7 . . AOE 124 | . . 9 . 107 8 . . . . . Terrain Rammed . | . . . . . . . . . . . Walls Destroyed . | . . . . . . . . . . . Machines Disabled . | . . . . . . . . . . . Actions | -11 -10 -10 -10 -9 -8 -7 -7 -7 -7 -7 --------- Run | Yrd Mat Min Exi Min Mat Fac Was Fac Low Zio Total 5937 | 89 657 579 889 528 1320 358 219 388 183 727 Wait 460 | . 26 10 5 139 230 28 . 1 . 21 Move 5121 | 73 572 544 872 317 1029 315 204 334 183 678 Hop 1 | . . . . . . . . . . 1 Pick Up 75 | 6 17 3 3 4 15 5 2 12 . 8 Fast Attach 9 | . 1 . . . 3 1 . . . 4 Attach 47 | 5 5 . . 4 7 4 5 13 . 4 Detach 4 | . . . . . . . . 2 . 2 Swap 26 | . 6 2 6 1 10 1 . . . . Drop 32 | . 9 3 3 1 9 4 . 2 . 1 Fire 159 | 5 19 17 . 62 17 . 8 24 . 7 Melee . | . . . . . . . . . . . Ram . | . . . . . . . . . . . Kick 2 | . 1 . . . . . . . . 1 Crush 1 | . 1 . . . . . . . . . Escape Stasis . | . . . . . . . . . . . Rewire . | . . . . . . . . . . . Trap . | . . . . . . . . . . . Miscellaneous . | . . . . . . . . . . . Route ------- -11/Scrapyard -10/Materials (discovered 4 exits: [*Mat x3] / *Min) -10/Mines (discovered 2 exits: [*Mat] / *Exi) -10/Exiles -9/Mines -8/Materials -7/Factory -7/Waste -7/Factory -7/Lower Caves -7/Zion (discovered 1 exit: [*Pro]) History --------- Turn | Location | Event 2 | -11/Scrapyard | Met Revision 17 65 | -11/Scrapyard | Discovered new exit (range 8) 93 | -11/Scrapyard | Entered Materials 310 | -10/Materials | Build established: Mutant 656 | -10/Materials | Discovered new exit (range 14) 797 | -10/Materials | Discovered new exit (range 9) 923 | -10/Materials | Discovered new exit (range 9) 975 | -10/Materials | Discovered new exit (range 15) 1086 | -10/Materials | Entered Mines 1205 | -10/Mines | Deemed a non-threat by the Exiles lab entrance 1206 | -10/Mines | Discovered new exit (range 5) 1346 | -10/Mines | Found a damaged Exp. Sensor Array with a note attached 1350 | -10/Mines | Found Prototype Device 1526 | -10/Mines | YI-UF0 nonchalantly dropped a Grenade Launcher on the ground 1544 | -10/Mines | Discovered new exit (range 5) 1783 | -10/Mines | Found the Drone Emporium 1794 | -10/Mines | Found Prototype Device 2025 | -10/Mines | Entered Exiles 2083 | -10/Exiles | Met 8R-AWN 2120 | -10/Exiles | Met EX-HEX 2224 | -10/Exiles | Met EX-DEC 2294 | -10/Exiles | Met EX-BIN 2334 | -10/Exiles | Aligned with FarCom system 2336 | -10/Exiles | Given EX-Vault access code 2483 | -10/Exiles | Opened EX-Vault 2493 | -10/Exiles | Identified Exp. Sensor Array 2494 | -10/Exiles | Identified Thief Drone Bay 2504 | -10/Exiles | Found Prototype Leg 2505 | -10/Exiles | Identified Potential Leg 2508 | -10/Exiles | Found Potential Leg 2541 | -10/Exiles | Warned to stay clear of 0b10 Research branches 2606 | -10/Exiles | Learned location of Zion (-7) 2651 | -10/Exiles | Discovered new exit (range 14) 2727 | -10/Exiles | Visited The Gauntlet 3033 | -10/Exiles | Left Exiles lab with Potential Leg 3033 | -10/Exiles | Entered Mines 3043 | -9/Mines | Assembled infested the area 3159 | -9/Mines | Core integrity fell below 50% 3164 | -9/Mines | Destroyed 12 combat bots 3179 | -9/Mines | Core integrity fell below 20% 3203 | -9/Mines | Lost 4 parts (1p1u2w) 3577 | -9/Mines | Discovered new exit (range 5) 3616 | -9/Mines | Learned location of Storage (-9) 3640 | -9/Mines | Entered Materials 3640 | -8/Materials | Evolved 4 slots: Power x1, Propulsion x1, Utility x1, Weapon x1 3941 | -8/Materials | Build established: Skirmisher 4674 | -8/Materials | Repaired EMP Blaster 4909 | -8/Materials | Discovered new exit (range 3) 4935 | -8/Materials | Entered Factory 4935 | -7/Factory | Evolved 2 slots: Utility x2 5074 | -7/Factory | Build established: Hacker-Skirmisher 5124 | -7/Factory | Fabricated Adv. Cryofiber Web? 5165 | -7/Factory | Fabricated B-36 Bruiser? 5292 | -7/Factory | Sucked down chute 5292 | -7/Factory | Entered Waste 5293 | -7/Waste | Met a frightened Derelict 5307 | -7/Waste | EMP discharged 5328 | -7/Waste | Spotted C-40 Crusher 5328 | -7/Waste | Spotted C-40 Crusher 5357 | -7/Waste | 3 allies followed down the chute 5372 | -7/Waste | Allies destroyed C-40 Crusher 5391 | -7/Waste | Crushed by Compactor (1 part destroyed, 1 dropped) 5394 | -7/Waste | Crushed by Compactor (1 part destroyed, 1 dropped) 5401 | -7/Waste | Crushed by Compactor (1 part destroyed, 1 dropped) 5402 | -7/Waste | Spotted C-40 Crusher 5407 | -7/Waste | EMP discharged 5407 | -7/Waste | System corruption reached 10% 5407 | -7/Waste | Spotted C-40 Crusher 5414 | -7/Waste | Lost 3 allies 5414 | -7/Waste | Crushed by Compactor (1 part destroyed, 1 dropped) 5414 | -7/Waste | Crushed by Compactor (1 part destroyed, 1 dropped) 5419 | -7/Waste | Crushed by Compactor (1 part destroyed, 2 dropped) 5420 | -7/Waste | Crushed by Compactor (1 part destroyed, 1 dropped) 5421 | -7/Waste | Spotted C-40 Crusher 5428 | -7/Waste | Spotted C-40 Crusher 5451 | -7/Waste | Lost 7 parts (1p2n1u3w) 5453 | -7/Waste | Discovered new exit (range 14) 5484 | -7/Waste | Entered Factory 5686 | -7/Factory | Garrison activated, responded to threat 5698 | -7/Factory | Build established: Mutant 5747 | -7/Factory | Core integrity fell below 50% 5810 | -7/Factory | Core integrity fell below 20% 5836 | -7/Factory | Lost 3 parts (1p2w) 5902 | -7/Factory | Discovered new exit (range 8) 5908 | -7/Factory | Entered Lower Caves 5998 | -7/Lower Caves | A Derelict revealed a hidden shortcut to a safe place 6000 | -7/Lower Caves | Entered Zion 6078 | -7/Zion | Discovered new exit (range 16) 6123 | -7/Zion | Found Prototype Special Weapon 6123 | -7/Zion | Identified RU-N14's Throwing Claymores 6128 | -7/Zion | Found RU-N14's Throwing Claymores 6139 | -7/Zion | Found RU-N14's Throwing Claymores 6324 | -7/Zion | System corruption cleaned by Quarantine Array 6416 | -7/Zion | Build established: Gunner 6734 | -7/Zion | Learned location of Armory (-3) 6855 | -7/Zion | Learned location of Quarantine (-2) 7399 | -7/Zion | Learned Factory trap positions 7550 | -7/Zion | Rebuked by Imprinter 7833 | -7/Zion | Attempted to imprint without authorization 7833 | -7/Zion | Attacked by Zionites 8050 | -7/Zion | Destroyed by A8-RLI(z) with Makeshift Axe Last Messages --------------- US8NF36N2URFEZJA87EEJI P6TJY UAJ#K7TT RU-N14's Throwing Claymores expended. 8Z-RRP(z) destroyed. Conduit Teleporter disabled. N0-4L9(z) pulls a Mak. Shrapnel Gun out of the Twisted Machinery. A6-PS5(z) bursts out of the Twisted Machinery. Titanium Leg destroyed. A6-PS5(z) pulls a Mak. Hammer out of the Twisted Machinery. A8-RLI(z) bursts out of the Twisted Machinery. A8-RLI(z) pulls a Mak. Axe out of the Twisted Machinery. Kicked A8-RLI(z). Adv. Terrain Scan Processor destroyed. System corrupted by crushing effect (+3). Knocked back. 0L-MIS(z) bursts out of the Twisted Machinery. 0L-MIS(z) pulls a Mak. Shrapnel Gun out of the Twisted Machinery. Map ----- +----------------------------------------------------+ | ??????????????????????????????????????????????? | | ??????????????????????????????????????????????? | | ??????????????????????????????????????????????? | | ??????????????????????????????????????????????? | | ??????????????????????????????????????????????? | | ??????????????????????????????????????????????? | | ???????????????????????????????????? "????????? | | ??????????????????????????????????? "????????? | | ??????????????????????????????????? """??????? | | ??????????????????????????????????" ""??????? | | ?????????????????????????????????"" "??????? | | ????????????????????????????????#"" "??????? | | ????????????????????????????????"" ""??????? | | ???????????????????????????????#" """??????? | | ???????????????????????????????"" "##??????? | | ?????????????????????????#######" ""##?????? | | ???????????????##?###?####"#""#"" ""#?????? | | ???????????????""##"###""#""""""" "#"?????? | | ?????############"""""""""""" "" """"?????? | | ?????""""""""" #""" """ """"??????? | | ????"""""""""" #""" """"#??????? | | ?????" #""" z ""##""????? | | ???#"""""" ##"" "" ""##"#"??" | | ???#""""""" c """#"""" """"""""" | | ???#""""""" zz#""#"""" """"" | | ???#"" = @ z"#""""" """" | | ???#"" % ###" "#####""" """ | | ???#"" ##"" ""####"" "" | | ???#""""" "" #"#" "###""" """ | | ???#"""""" """ #""" """#"" """" | | ???##############"" """##" """ | | ???????????######"# ""##""" | | ??????????##"""#### #"##"#""""" "" | | ??????????#" #"###"#""""" """ """ | | ??????????#" #?"?######"" """ """" | | ??????????#" #????????#"" """" | | ??????????## #### #????????##" " ""## | | ???????????# #??######?????????#"""" "" """" | | ??????###### ######????????????###"" """""" | | ?????""""" """"??????????????##" """#"" | | ?????###### [ ######????????????###" ""##"" | | ?????# " " #??????????#?#""" " | | ?????# " "" #?????????##"#""" " """ | | ?????# = " " #????????##"""" " "$" | | ?????# """""#????????#""" """ | | ?????# """" #????????#"#" | | ?????# "" ""#?????????#""" | | ?????# "" " #?????????#""""""" | | ?????#" """""" #?????????#####"""" | | ?????#"" """""""#?????????????###"" | +----------------------------------------------------+ Best States ------------- Heat Dissipation 35 Energy Generation 27 Energy Capacity 480 Matter Stores 300 Matter Capacity 350 Sight Range 18 Robot Scan Range 20 Terrain Scan Range 14 Terrain Scan Density 210 Base Temperature (-) 200 Resistance: KI 20 Resistance: TH 20 Resistance: EX 20 Resistance: EM 20 Resistance: I 20 Resistance: S 20 Resistance: P 20 Power Shielding 33 Evasion (%) 57 Recoil Reduction 2 Offensive Hacking 20 Item Schematics ----------------- Cld. Particle Cannon | -7/Factory | Scanalyzed Carbon-fiber Leg | -7/Factory | Scanalyzed Mak. Laser | -7/Zion | Archive Fission Core | -7/Zion | Archive Hpw. Shock Rifle | -7/Zion | Archive Greatsword | -7/Zion | Archive Imp. Hacking Suite | -7/Zion | Archive Mak. Flight Unit | -7/Zion | Archive Neutrino Core | -7/Zion | Archive Lgt. Fission Core | -7/Zion | Archive Mak. Leg | -7/Zion | Archive Imp. Titanium Leg | -7/Zion | Archive Lrn. Missile Launcher | -7/Zion | Archive Energy Filter | -7/Zion | Archive Imp. Particle Charger | -7/Zion | Archive Imp. Cooling System | -7/Zion | Archive Imp. Arc Projector | -7/Zion | Archive Robot Schematics ------------------ B-48 Gladiator | -7/Zion | Archive T-07 Excavator | -7/Zion | Archive L-41 Fighter | -7/Zion | Archive Fabricated ------------ Adv. Cryofiber Web | x1 | -7/Factory | Preloaded B-36 Bruiser | x3 | -7/Factory | Preloaded Alien Tech Used ----------------- None Achievements -------------- Backstab Close Call Everything Is Under Control I Survived The Infestation Just What I Needed My Command Is Your Wish Robot Respite System Compromised Tourist Challenges ------------ None Game ------ Seed PotentialEfficiencyThruster Manual? 0 Play Time 02:06:52 Cumulative 7.1 hours Start 2024.05.06 @ 23:15:59 End 2024.05.26 @ 18:04:15 Sessions 4 Manual Loads 0 Difficulty Adventurer Special Mode None Game No. 3 Rogue 0 Adventurer 3 Explorer 0 Win Type - Total 0 Types 0/0/0/0/0/0/0/0/0 Lore% 12 Gallery% 9 Achievement% 10 Wizard Run 0 Options --------- Layout 1 ASCII 0 Keyboard 0 Movement Arrows Keybinds 0 Fullscreen 1 Font 24/Smallcaps Map View 50x35 Zoom Use 0% Tactical HUD 0 Map Filters NONE Filters NONE Steam 1 RUN: d5564623-43b8-4fe6-bcd8-0d0bec40d2b6